fUSD/lending_fUSD_20240821
["ID","MTS","AMOUNT","RATE_DAILY","PERIOD"]
[335427685,1724223043207,-500.0,0.00016499,5]
[335427686,1724223043216,-500.0,0.00016499,5]
[335427687,1724223043225,-500.0,0.00016499,5]
[335427688,1724223043235,-500.0,0.00016499,5]
[335427689,1724223043244,-677.57,0.00016499,5]
[335427690,1724223043253,-677.57,0.00016499,5]
[335427691,1724223043262,-677.57,0.00016499,5]
[335427692,1724223043272,-677.57,0.00016499,5]
[335427693,1724223043281,-677.57,0.00016499,5]
[335427694,1724223043290,-677.57,0.00016499,5]
[335427695,1724223043300,-677.57,0.00016499,5]
[335427696,1724223043309,-677.57,0.00016499,5]
[335427697,1724223043318,-677.57,0.00016499,5]
[335427698,1724223043327,-677.57,0.00016499,5]
[335427699,1724223043336,-677.57,0.00016499,5]
[335427700,1724223043345,-677.57,0.00016499,5]
[335427701,1724223043355,-1179.87,0.00016499,5]
[335427702,1724223043367,-1179.87,0.00016499,5]
[335427703,1724223043376,-1179.87,0.00016499,5]
[335427704,1724223043385,-581.51,0.00016499,5]
[335427705,1724223043394,-1179.87,0.00016499,5]
[335427706,1724223043403,-581.51,0.00016499,5]
[335427707,1724223043414,-1179.87,0.00016499,5]
[335427708,1724223043423,-581.51,0.00016499,5]
[335427709,1724223043432,-581.51,0.00016499,5]
[335427710,1724223043441,-581.51,0.00016499,5]
[335427711,1724223043450,-581.51,0.00016499,5]
[335427712,1724223043459,-581.51,0.00016499,5]
[335427713,1724223043468,-581.51,0.00016499,5]
[335427714,1724223043478,-1179.87,0.00016499,5]
[335427715,1724223043487,-581.51,0.00016499,5]
[335427716,1724223043496,-1179.87,0.00016499,5]
[335427717,1724223043506,-581.51,0.00016499,5]
[335427718,1724223043515,-1179.87,0.00016499,5]
[335427719,1724223043524,-581.51,0.00016499,5]
[335427720,1724223043533,-1179.87,0.00016499,5]
[335427721,1724223043542,-581.51,0.00016499,5]
[335427722,1724223043551,-1179.87,0.00016499,5]
[335427723,1724223043561,-1179.87,0.00016499,5]
[335427724,1724223043570,-1179.87,0.00016499,5]
[335427725,1724223043579,-500.0,0.00016499,5]
[335427726,1724223043588,-500.0,0.00016499,5]
[335427727,1724223043597,-500.0,0.00016499,5]
[335427728,1724223043606,-500.0,0.00016499,5]
[335427729,1724223043615,-500.0,0.00016499,5]
[335427730,1724223043624,-500.0,0.00016499,5]
[335427731,1724223043633,-500.0,0.00016499,5]
[335427732,1724223043642,-500.0,0.00016499,5]
[335427733,1724223043651,-500.0,0.00016499,5]
[335427734,1724223043659,-500.0,0.00016499,5]
[335427735,1724223043669,-500.0,0.00016499,5]
[335427736,1724223043678,-500.0,0.00016499,5]
[335427737,1724223043687,-557.73,0.00016499,5]
[335427738,1724223043696,-557.73,0.00016499,5]
[335427739,1724223043705,-500.0,0.00016499,5]
[335427740,1724223043714,-557.73,0.00016499,5]
[335427741,1724223043723,-500.0,0.00016499,5]
[335427742,1724223043733,-557.73,0.00016499,5]
[335427743,1724223043742,-557.73,0.00016499,5]
[335427744,1724223043751,-500.0,0.00016499,5]
[335427745,1724223043760,-93.22349835,0.00016499,5]
[335427746,1724223043906,-464.50650165,0.00016499,5]
[335427747,1724223043918,-405.52750485,0.00016499,5]
[335427748,1724223043930,-94.47249515,0.00016499,5]
[335427749,1724223043945,-557.73,0.00016499,5]
[335427750,1724223043956,-500.0,0.00016499,5]
[335427751,1724223043967,-557.73,0.00016499,5]
[335427752,1724223043976,-12.47595279,0.00016499,5]
[335427753,1724223043990,-487.52404721,0.00016499,5]
[335427754,1724223043999,-325.33654398,0.00016499,5]
[335427755,1724223044082,-166.01032775,0.00013042,2]
[335427756,1724223044092,-232.39345602,0.00016499,5]
[335427757,1724223044102,-399.3932823,0.00016499,5]
[335427758,1724223044111,-500.0,0.00016499,5]
[335427759,1724223044121,-500.0,0.00016499,5]
[335427760,1724223044130,-557.73,0.00016499,5]
[335427761,1724223044140,-500.0,0.00016499,5]
[335427762,1724223044149,-557.73,0.00016499,5]
[335427763,1724223044159,-291.59389572,0.00016499,5]
[335427764,1724223044168,-557.73,0.00016499,5]
[335427765,1724223044178,-500.0,0.00016499,5]
[335427766,1724223044187,-261.77393201,0.00016499,5]
[335427767,1724223044196,-826.98,0.00016499,5]
[335427768,1724223044206,-826.98,0.00016499,5]
[335427769,1724223044215,-751.54462706,0.00016499,5]
[335427770,1724223044230,-75.43537294,0.00016499,5]
[335427771,1724223044239,-498.59821624,0.00016499,5]
[335427772,1724223044251,-328.38178376,0.00016499,5]
[335427773,1724223044260,-826.98,0.00016499,5]
[335427774,1724223044271,-826.98,0.00016499,5]
[335427775,1724223044280,-826.98,0.00016499,5]
[335427776,1724223044290,-826.98,0.00016499,5]
[335427777,1724223044299,-826.98,0.00016499,5]
[335427778,1724223044308,-2816.08474353,0.000165,2]
[335427779,1724223044320,-1489.433276,0.000165,2]
[335427780,1724223044331,-730.07124766,0.000165,2]
[335427781,1724223044342,-547.52749393,0.000165,2]
[335427782,1724223044356,-1247.19195163,0.000165,2]
[335427783,1724223044367,-731.17635156,0.000165,2]
[335427784,1724223044379,-3884.44144592,0.000165,2]
[335427785,1724223044397,-717.8560386,0.000165,2]
[335427786,1724223044408,-395.48039178,0.000165,2]
[335427787,1724223045345,-537650.9999999,0.000165,2]
[335427788,1724223045466,-633.41164026,0.00016489,5]
[335427789,1724223045476,-5013.92964286,0.000165,2]
[335427790,1724223045488,-12233.848,0.000165,2]
[335427791,1724223045500,-3391.41270362,0.000165,2]
[335427792,1724223045692,-347.72579691,0.000165,2]
[335427793,1724223045706,-747.54487454,0.000165,2]
[335427794,1724223056555,466.67695568,0.00010999,2]
[335427795,1724223135318,500.0,0.00010338,2]
[335427796,1724223144934,959.0,0.00010999,2]
[335427797,1724223178213,181.96574564,0.00010999,2]
[335427798,1724223265970,1050.0,0.0001,2]
[335427800,1724223630327,155.0,0.000108,2]
[335427808,1724224092656,150.43,0.00010959,2]
[335427852,1724224231758,-300.0,0.00012999,2]
[335427853,1724224231767,-618.87231146,0.00013,2]
[335427854,1724224231780,-419.17924755,0.00013,2]
[335427855,1724224231802,-977.23919338,0.00013,2]
[335427856,1724224231815,-3758.52862425,0.00013,2]
[335427978,1724224239935,-300.50713672,0.00012121,2]
[335427979,1724224239944,-340.80099411,0.00013,2]
[335427980,1724224240265,-2789.54230051,0.00013,2]
[335427981,1724224240277,-391.14500001,0.00013,2]
[335428505,1724224804787,1074.67923523,0.00010999,2]
[335428506,1724224846019,163.08213764,0.00010999,2]
[335428507,1724224846389,300.13681126,0.00010999,2]
[335428508,1724224858155,3000.0,0.00010999,2]
[335428509,1724224868189,182.07665021,0.00010999,2]
[335428510,1724224875093,214.39135946,0.00010999,2]
[335428511,1724224905895,1549.82685,0.00010999,2]
[335428512,1724224948625,2500.0,0.00010999,2]
[335428513,1724224979068,155.0,0.00010999,2]
[335428514,1724224991400,1291.52237,0.00010999,2]
[335428515,1724225022230,440.37857631,0.00010999,2]
[335428516,1724225034128,2083.33333,0.00010999,2]
[335428517,1724225076988,1076.26865,0.00010999,2]
[335428518,1724225119695,1736.11111,0.00010999,2]
[335428520,1724225162422,896.89054,0.00010999,2]
[335428521,1724225204175,1446.75926,0.00010999,2]
[335428522,1724225236830,2874.0,0.00018,120]
[335428523,1724225246869,747.40878,0.00010999,2]
[335428524,1724225289478,1205.63271,0.00010999,2]
[335428526,1724225332200,622.84065,0.00010999,2]
[335428531,1724225375125,1004.69393,0.00010999,2]
[335428545,1724225417685,519.03388,0.00010999,2]
[335428553,1724225431922,-689.30241408,0.00011999,2]
[335428554,1724225431934,-754.48109514,0.00011999,2]
[335428555,1724225431960,-5012.18008577,0.00011999,2]
[335428565,1724225437920,-290.305015,0.00011999,2]
[335428566,1724225437931,-1024.42347234,0.00011999,2]
[335428567,1724225437942,-326.52742914,0.00011999,2]
[335428568,1724225438119,-7385.8879549,0.00011999,2]
[335428569,1724225438129,-3877.17064099,0.00012089,2]
[335428570,1724225438138,-517.05,0.00012803,2]
[335428571,1724225438147,-155.0,0.0001294,2]
[335428573,1724225438157,-2881.42922873,0.00013,2]
[335428575,1724225438166,-503.0,0.00013,2]
[335428576,1724225438175,-2502.58566001,0.00013001,2]
[335428577,1724225438185,-628.70277812,0.00013001,2]
[335428578,1724225438194,-892.72350459,0.00013001,2]
[335428579,1724225438203,-427.95554435,0.00013001,2]
[335428580,1724225438212,-357.4813523,0.00013001,2]
[335428581,1724225438221,-380.51090251,0.00013042,2]
[335428582,1724225438230,-183.75759609,0.00013042,2]
[335428583,1724225438239,-485.60018765,0.00013042,2]
[335428584,1724225438248,-160.47082444,0.00013042,2]
[335428585,1724225438257,-197.30721512,0.00013042,2]
[335428602,1724225438421,-200.32463603,0.00013042,2]
[335428604,1724225438431,-150.0,0.00013051,2]
[335428606,1724225438440,-155.45612317,0.00013052,2]
[335428608,1724225438449,-175.68792377,0.00013052,2]
[335428610,1724225438459,-644.46872531,0.00013052,2]
[335428612,1724225438468,-155.0,0.00013052,2]
[335428614,1724225438477,-328.2488375,0.00013052,2]
[335428616,1724225438486,-155.19609176,0.00013052,2]
[335428618,1724225438496,-349.5815431,0.00013086,2]
[335428620,1724225438505,-347.51379482,0.00013292,2]
[335428622,1724225438515,-619.58566799,0.00013391,2]
[335428624,1724225438524,-299.99,0.00013698,2]
[335428626,1724225438533,-2304.84,0.00013698,2]
[335428628,1724225438542,-250.0,0.00014495,2]
[335428630,1724225438552,-557.18,0.00014537,2]
[335428632,1724225438561,-195.98,0.0001459,2]
[335428634,1724225438570,-450.0,0.00014611,2]
[335428636,1724225438580,-1000.0,0.00014628,2]
[335428638,1724225438589,-7080.56,0.00014839,2]
[335428640,1724225438599,-1111.0,0.00015,3]
[335428641,1724225438608,-7058.922,0.00015,15]
[335428643,1724225438620,-4027.0,0.00015,3]
[335428645,1724225438629,-500.0,0.00015044,2]
[335428647,1724225438638,-517.05,0.00015067,2]
[335428649,1724225438647,-282.41,0.00015172,2]
[335428651,1724225438656,-167.0,0.00015831,2]
[335428653,1724225438665,-624.84641014,0.00015899,2]
[335428655,1724225438675,-457.35,0.000159,2]
[335428657,1724225438684,-73648.999038,0.00015954,2]
[335428659,1724225438693,-519.03388,0.00015999,2]
[335428661,1724225438702,-10247.00363346,0.00016,2]
[335428663,1724225438712,-1000.0,0.00016158,2]
[335428665,1724225438722,-153.98,0.00016219,2]
[335428667,1724225438731,-150.0,0.00016219,2]
[335428669,1724225438741,-150.0,0.00016219,2]
[335428671,1724225438751,-5334.18870518,0.000163,2]
[335428673,1724225438761,-686.1826,0.00016342,2]
[335428675,1724225438771,-3244.9008,0.00016343,2]
[335428677,1724225438780,-364.34454028,0.00016345,2]
[335428679,1724225438789,-152.79080492,0.00016367,2]
[335428681,1724225438803,-3597.03878168,0.00016388,2]
[335428683,1724225438813,-10918.0105845,0.00016434,3]
[335428685,1724225438822,-21836.0211691,0.00016435,3]
[335428687,1724225438835,-21836.0211691,0.00016435,3]
[335428689,1724225438845,-150.51,0.00016435,2]
[335428691,1724225438855,-10918.0105845,0.00016437,3]
[335428693,1724225438864,-500.0,0.00016438,2]
[335428694,1724225438877,-500.0,0.00016438,2]
[335428696,1724225438887,-500.0,0.00016438,2]
[335428698,1724225438898,-500.0,0.00016438,2]
[335428700,1724225438908,-21836.0211691,0.00016438,3]
[335428703,1724225438920,-150.51,0.00016438,2]
[335428705,1724225438930,-10918.0105845,0.0001644,3]
[335428706,1724225438939,-10918.0105845,0.00016442,3]
[335428708,1724225438948,-500.0,0.00016442,5]
[335428710,1724225438958,-500.0,0.00016442,5]
[335428712,1724225438967,-500.0,0.00016442,5]
[335428714,1724225438976,-500.0,0.00016442,5]
[335428716,1724225438986,-500.0,0.00016442,5]
[335428718,1724225438996,-376.03471366,0.00016442,5]
[335428720,1724225439005,-500.0,0.00016442,5]
[335428722,1724225439014,-500.0,0.00016442,5]
[335428724,1724225439024,-500.0,0.00016442,5]
[335428726,1724225439033,-500.0,0.00016442,5]
[335428727,1724225439042,-500.0,0.00016442,5]
[335428729,1724225439051,-500.0,0.00016442,5]
[335428731,1724225439061,-516.59742313,0.00016442,5]
[335428733,1724225439070,-500.0,0.00016442,5]
[335428735,1724225439079,-600.49,0.00016442,5]
[335428737,1724225439088,-513.04489097,0.00016442,5]
[335428739,1724225439098,-520.24859036,0.00016442,5]
[335428741,1724225439107,-641.41788554,0.00016442,5]
[335428743,1724225439116,-500.0,0.00016442,5]
[335428744,1724225439126,-558.13272496,0.00016442,5]
[335428746,1724225439136,-500.0,0.00016442,5]
[335428748,1724225439146,-508.17546484,0.00016442,5]
[335428750,1724225439156,-500.0,0.00016442,5]
[335428752,1724225439167,-500.0,0.00016442,5]
[335428754,1724225439177,-500.0,0.00016442,5]
[335428756,1724225439187,-586.97279268,0.00016442,5]
[335428758,1724225439197,-500.0,0.00016442,5]
[335428760,1724225439207,-508.47686814,0.00016442,5]
[335428762,1724225439217,-715.1,0.00016442,5]
[335428764,1724225439228,-500.0,0.00016442,5]
[335428766,1724225439237,-500.0,0.00016442,5]
[335428768,1724225439246,-620.47689811,0.00016442,5]
[335428770,1724225439255,-564.19528468,0.00016442,5]
[335428772,1724225439264,-557.98755441,0.00016442,5]
[335428774,1724225439273,-544.65945072,0.00016442,5]
[335428776,1724225439282,-548.34763905,0.00016442,5]
[335428777,1724225439292,-500.0,0.00016442,5]
[335428779,1724225439301,-500.0,0.00016442,5]
[335428781,1724225439311,-500.0,0.00016442,5]
[335428783,1724225439320,-500.0,0.00016442,5]
[335428785,1724225439330,-500.0,0.00016442,5]
[335428787,1724225439339,-505.38773728,0.00016442,5]
[335428789,1724225439349,-500.0,0.00016442,5]
[335428791,1724225439359,-403.88,0.00016442,5]
[335428793,1724225439369,-500.0,0.00016442,5]
[335428795,1724225439378,-500.0,0.00016442,5]
[335428797,1724225439387,-1056.54,0.00016442,5]
[335428799,1724225439397,-500.0,0.00016442,5]
[335428801,1724225439407,-500.0,0.00016442,5]
[335428803,1724225439417,-500.0,0.00016442,5]
[335428804,1724225439427,-500.0,0.00016442,5]
[335428805,1724225439436,-500.0,0.00016442,5]
[335428806,1724225439445,-500.0,0.00016442,5]
[335428807,1724225439455,-500.0,0.00016442,5]
[335428808,1724225439464,-500.0,0.00016442,5]
[335428809,1724225439474,-500.0,0.00016442,5]
[335428810,1724225439483,-500.0,0.00016442,5]
[335428812,1724225439492,-500.0,0.00016442,5]
[335428814,1724225439502,-511.91053545,0.00016442,5]
[335428816,1724225439511,-500.0,0.00016442,5]
[335428818,1724225439521,-500.0,0.00016442,5]
[335428820,1724225439531,-500.0,0.00016442,5]
[335428822,1724225439540,-500.0,0.00016442,5]
[335428824,1724225439549,-500.0,0.00016442,5]
[335428826,1724225439559,-642.89,0.00016442,5]
[335428828,1724225439569,-500.0,0.00016442,5]
[335428830,1724225439578,-500.0,0.00016442,5]
[335428832,1724225439587,-500.0,0.00016442,5]
[335428834,1724225439597,-500.0,0.00016442,5]
[335428836,1724225439607,-272.11769639,0.00016442,5]
[335428838,1724225439616,-500.0,0.00016442,5]
[335428840,1724225439627,-4452.92,0.00016442,5]
[335428842,1724225439636,-500.0,0.00016442,5]
[335428844,1724225439645,-500.0,0.00016442,5]
[335428846,1724225439655,-500.0,0.00016442,5]
[335428847,1724225439664,-500.0,0.00016442,5]
[335428849,1724225439674,-500.0,0.00016442,5]
[335428851,1724225439683,-702.56,0.00016442,5]
[335428853,1724225439692,-500.0,0.00016442,5]
[335428855,1724225439702,-500.0,0.00016442,5]
[335428857,1724225439713,-500.0,0.00016442,5]
[335428859,1724225439723,-500.0,0.00016442,5]
[335428861,1724225439734,-1091.39,0.00016442,5]
[335428863,1724225439744,-500.0,0.00016442,5]
[335428865,1724225439754,-500.0,0.00016442,5]
[335428867,1724225439764,-95806.58,0.00016443,4]
[335428869,1724225439773,-16391.9383409,0.00016444,3]
[335428914,1724225440128,-155.43864441,0.00013042,2]
[335428916,1724225440137,-1244.3553465,0.00016444,3]
[335428920,1724225440163,-1181.8693022,0.00016444,3]
[335428922,1724225440175,-597.2,0.00016444,3]
[335428925,1724225440198,-2420.6581795,0.00016444,3]
[335428927,1724225440208,-500.0,0.00016444,5]
[335428929,1724225440218,-500.0,0.00016444,5]
[335428931,1724225440229,-500.0,0.00016444,5]
[335428933,1724225440239,-10918.0105845,0.00016444,3]
[335428935,1724225440248,-43672.0423382,0.00016445,3]
[335428937,1724225440257,-29257.38652653,0.00016445,3]
[335428956,1724225440430,-242.61347347,0.00016445,3]
[335428958,1724225440439,-354.71652653,0.00016447,3]
[335429021,1724225442979,-648.6911995,0.00016442,5]
[335429022,1724225442990,-500.0,0.00016442,5]
[335429023,1724225442999,-1075.28624298,0.00016447,3]
[335429024,1724225443015,-2654.64403753,0.00016447,3]
[335429030,1724225443300,-1066.32182804,0.00016447,3]
[335429251,1724225446074,-648.82528956,0.00016447,3]
[335429265,1724225446199,-3193.88304312,0.00016447,3]
[335429802,1724225797979,150.04,0.00010959,2]
[335429803,1724225816516,413.32982156,0.00010959,2]
[335429804,1724225821474,300.16274055,0.00010959,2]
[335429805,1724226231479,367.9111147,0.00010999,2]
[335429806,1724226277159,155.0,0.00010999,2]
[335429807,1724226314029,380.51090251,0.00010999,2]
[335429830,1724226632009,-157.06540395,0.00011999,2]
[335429832,1724226632018,-155.0,0.00013001,2]
[335429834,1724226632028,-485.24975315,0.00013042,2]
[335429836,1724226632038,-645.0,0.00013042,2]
[335429838,1724226632047,-441.53254269,0.00013052,2]
[335429839,1724226632056,-197.00318768,0.00013052,2]
[335429840,1724226632067,-155.53562725,0.00013086,2]
[335429841,1724226632076,-504.08,0.00013108,2]
[335429842,1724226632085,-249.7163439,0.00013292,2]
[335429843,1724226632095,-1298.34223089,0.0001385,2]
[335429844,1724226632104,-800.0,0.00014688,2]
[335429845,1724226632113,-150.0,0.00014819,2]
[335429846,1724226632123,-300.0,0.00014871,2]
[335429847,1724226632132,-1852.42,0.00014872,2]
[335429848,1724226632142,-8654.0,0.00014872,2]
[335429849,1724226632151,-382.32,0.00014961,2]
[335429850,1724226632162,-196.0,0.00014966,2]
[335429851,1724226632172,-250.0,0.00015021,2]
[335429852,1724226632181,-504.08,0.00015372,2]
[335429853,1724226632191,-200.0,0.00015395,2]
[335429854,1724226632201,-321.6,0.00015447,2]
[335429855,1724226632210,-624.84641014,0.0001554,2]
[335429856,1724226632219,-175.24,0.00015861,2]
[335429857,1724226632229,-536.84,0.000161,2]
[335429858,1724226632238,-155.0,0.00016141,2]
[335429859,1724226632248,-3314.5799,0.00016235,2]
[335429860,1724226632258,-3768.932,0.00016235,2]
[335429861,1724226632268,-801.5619,0.00016242,2]
[335429862,1724226632277,-1831.4428,0.00016242,2]
[335429863,1724226632287,-150.0,0.0001627,2]
[335429864,1724226632297,-2247.10931637,0.00016332,2]
[335429865,1724226632310,-2704.2074,0.00016334,2]
[335429866,1724226632319,-539.19862534,0.00016335,2]
[335429867,1724226632331,-1070.57254291,0.00016335,2]
[335429868,1724226632343,-429.8742519,0.00016335,2]
[335429869,1724226632359,-2900.0,0.00016335,2]
[335429870,1724226632371,-1300.99,0.00016335,2]
[335429871,1724226632385,-879.38365158,0.00016335,2]
[335429874,1724226632401,-396.43613715,0.00016335,2]
[335429876,1724226632416,-378.25609224,0.00016335,2]
[335429877,1724226632427,-1728.39618865,0.00016335,2]
[335429916,1724226637992,-3908.93012636,0.00016335,2]
[335429918,1724226638003,-4027.37992,0.00016335,2]
[335429920,1724226638015,-3834.89158,0.00016335,2]
[335429922,1724226638027,-3000.0,0.00016335,2]
[335429925,1724226638039,-1000.0,0.00016335,2]
[335429927,1724226638149,-1221.31877427,0.00016335,2]
[335429928,1724226638206,-18294.3119096,0.00016335,2]
[335429929,1724226638215,-2317.7325,0.00016337,2]
[335429930,1724226638225,-533.86610401,0.00016338,2]
[335429931,1724226638234,-41204.9436,0.00016344,2]
[335429932,1724226638244,-735.43153645,0.00016347,2]
[335429933,1724226638254,-1270.9385,0.00016348,2]
[335429934,1724226638263,-735.43153645,0.00016353,2]
[335429935,1724226638273,-1000.0,0.00016354,2]
[335429936,1724226638282,-500.0,0.00016357,2]
[335429937,1724226638291,-420.0,0.00016358,2]
[335429938,1724226638301,-735.43153645,0.00016358,2]
[335429939,1724226638310,-152.79080492,0.00016367,2]
[335429940,1724226638320,-2766.5955928,0.00016387,2]
[335429941,1724226638329,-153.92636751,0.00016393,2]
[335429942,1724226638338,-19553.9834621,0.00016428,3]
[335429943,1724226638348,-29330.9751931,0.00016432,3]
[335429944,1724226638358,-9776.99173105,0.00016432,3]
[335429945,1724226638366,-150.51,0.00016433,2]
[335429946,1724226638376,-9776.99173105,0.00016434,3]
[335429947,1724226638386,-48884.9586553,0.00016434,3]
[335429948,1724226638396,-8894.10076229,0.00016437,2]
[335429949,1724226638406,-29330.9751931,0.00016437,3]
[335429950,1724226638416,-22689.2669111,0.00016438,3]
[335429951,1724226638425,-500.0,0.00016438,2]
[335429952,1724226638434,-500.0,0.00016438,2]
[335429953,1724226638443,-500.0,0.00016438,2]
[335429954,1724226638452,-500.0,0.00016438,2]
[335429955,1724226638461,-500.0,0.00016438,2]
[335429957,1724226638471,-541.51925608,0.00016438,2]
[335429959,1724226638480,-520.49052756,0.00016438,2]
[335429961,1724226638490,-500.0,0.00016438,2]
[335429962,1724226638500,-533.12649634,0.00016438,2]
[335429964,1724226638509,-500.0,0.00016438,2]
[335429966,1724226638519,-532.98431697,0.00016438,2]
[335429968,1724226638529,-532.44391563,0.00016438,2]
[335429970,1724226638538,-534.38672912,0.00016438,2]
[335429972,1724226638547,-526.91452322,0.00016438,2]
[335429974,1724226638557,-527.04273279,0.00016438,2]
[335429976,1724226638567,-500.0,0.00016438,2]
[335429978,1724226638577,-500.0,0.00016438,2]
[335429980,1724226638588,-520.21702794,0.00016438,2]
[335429982,1724226638597,-500.0,0.00016438,2]
[335429984,1724226638607,-500.0,0.00016438,2]
[335429986,1724226638617,-524.00358161,0.00016438,2]
[335429988,1724226638626,-500.0,0.00016438,2]
[335429990,1724226638635,-523.18355016,0.00016438,2]
[335429992,1724226638644,-531.91258291,0.00016438,2]
[335429994,1724226638654,-518.54532495,0.00016438,2]
[335429996,1724226638664,-500.0,0.00016438,2]
[335429998,1724226638674,-519.31611938,0.00016438,2]
[335430000,1724226638683,-523.21191359,0.00016438,2]
[335430002,1724226638692,-526.78734895,0.00016438,2]
[335430004,1724226638701,-514.37528104,0.00016438,2]
[335430006,1724226638711,-535.8179826,0.00016438,2]
[335430008,1724226638721,-514.20687663,0.00016438,2]
[335430010,1724226638731,-527.96049215,0.00016438,2]
[335430011,1724226638740,-500.0,0.00016438,2]
[335430013,1724226638749,-550.3844175,0.00016438,2]
[335430015,1724226638759,-504.87246916,0.00016438,2]
[335430017,1724226638768,-500.0,0.00016438,2]
[335430019,1724226638777,-521.66126524,0.00016438,2]
[335430021,1724226638786,-532.16273475,0.00016438,2]
[335430023,1724226638795,-500.0,0.00016438,2]
[335430025,1724226638805,-535.6534633,0.00016438,2]
[335430027,1724226638814,-536.01759645,0.00016438,2]
[335430029,1724226638824,-500.0,0.00016438,2]
[335430030,1724226638833,-500.0,0.00016438,2]
[335430032,1724226638843,-578.38356696,0.00016438,2]
[335430034,1724226638853,-589.69642398,0.00016438,2]
[335430036,1724226638862,-500.0,0.00016438,2]
[335430038,1724226638871,-520.1364369,0.00016438,2]
[335430040,1724226638881,-500.0,0.00016438,2]
[335430042,1724226638891,-580.04943008,0.00016438,2]
[335430044,1724226638901,-545.67487179,0.00016438,2]
[335430046,1724226638910,-537.52008267,0.00016438,2]
[335430048,1724226638920,-500.0,0.00016438,2]
[335430050,1724226638929,-500.0,0.00016438,2]
[335430052,1724226638939,-541.20211379,0.00016438,2]
[335430054,1724226638949,-500.0,0.00016438,2]
[335430056,1724226638958,-500.0,0.00016438,2]
[335430058,1724226638967,-487.52840905,0.00016438,2]
[335430060,1724226638977,-500.0,0.00016438,2]
[335430062,1724226638986,-541.65069573,0.00016438,2]
[335430064,1724226638996,-519.86885795,0.00016438,2]
[335430066,1724226639005,-534.85428937,0.00016438,2]
[335430068,1724226639014,-500.0,0.00016438,2]
[335430069,1724226639024,-500.0,0.00016438,2]
[335430071,1724226639033,-527.59321368,0.00016438,2]
[335430072,1724226639043,-537.6930018,0.00016438,2]
[335430074,1724226639053,-500.0,0.00016438,2]
[335430076,1724226639062,-500.0,0.00016438,2]
[335430077,1724226639072,-500.0,0.00016438,2]
[335430079,1724226639081,-509.66804077,0.00016438,2]
[335430081,1724226639091,-500.0,0.00016438,2]
[335430082,1724226639100,-525.22044463,0.00016438,2]
[335430084,1724226639109,-500.0,0.00016438,2]
[335430086,1724226639119,-500.0,0.00016438,2]
[335430087,1724226639128,-500.0,0.00016438,2]
[335430089,1724226639137,-500.0,0.00016438,2]
[335430091,1724226639147,-529.69141864,0.00016438,2]
[335430092,1724226639156,-576.33264283,0.00016438,2]
[335430094,1724226639166,-500.0,0.00016438,2]
[335430096,1724226639175,-516.57224689,0.00016438,2]
[335430097,1724226639184,-521.41813438,0.00016438,2]
[335430099,1724226639193,-500.0,0.00016438,2]
[335430101,1724226639202,-500.0,0.00016438,2]
[335430102,1724226639212,-500.0,0.00016438,2]
[335430104,1724226639221,-500.0,0.00016438,2]
[335430106,1724226639230,-324.70403643,0.00016438,2]
[335430107,1724226639239,-500.0,0.00016438,2]
[335430109,1724226639248,-500.0,0.00016438,2]
[335430111,1724226639257,-500.0,0.00016438,2]
[335430112,1724226639266,-500.0,0.00016438,2]
[335430114,1724226639275,-561.17391796,0.00016438,2]
[335430116,1724226639284,-500.0,0.00016438,2]
[335430117,1724226639293,-500.0,0.00016438,2]
[335430119,1724226639304,-500.0,0.00016438,2]